bitfinex/quotes_SOLUSD_20240808
["timestamp","ask_amount","ask_price","bid_price","bid_amount"]
[1723120024028,15.5396,153.25,153.15,40.0]
[1723120024029,44.2196,153.25,153.15,40.0]
[1723120024196,28.68,153.25,153.22,6.5262]
[1723120024518,28.68,153.25,153.21,6.5268]
[1723120025117,34.7342,153.27,153.24,6.5257]
[1723120025467,34.7342,153.27,153.23,6.5259]
[1723120026827,28.68,153.25,153.13,42.58753833]
[1723120027031,28.68,153.23,153.19,6.5274]
[1723120027324,28.68,153.21,153.12,22.3232]
[1723120028121,28.68,153.21,153.17,6.5283]
[1723120028339,6.5277,153.2,153.15,6.5292]
[1723120028495,28.68,153.19,153.16,6.529]
[1723120028820,28.68,153.19,153.17,6.5285]
[1723120029194,28.68,153.19,153.12,15.9093]
[1723120029400,28.68,153.19,153.15,6.5293]
[1723120029602,28.68,153.17,153.11,0.8464594]
[1723120030320,28.68,153.17,153.11,2.15240121]
[1723120030617,28.68,153.17,153.11,0.8464594]
[1723120030824,28.68,153.17,153.15,6.5293]
[1723120030999,28.68,153.17,153.11,0.8464594]
[1723120031196,28.68,153.17,153.13,6.5301]
[1723120031401,35.2341,153.19,153.11,2.15245898]
[1723120031601,28.68,153.19,153.17,6.5286]
[1723120031823,28.68,153.19,153.11,0.8464594]
[1723120032027,28.68,153.17,153.12,6.5307]
[1723120032227,28.68,153.17,153.13,6.5303]
[1723120032427,28.68,153.17,153.14,6.5299]
[1723120032946,28.68,153.19,153.15,6.5294]
[1723120033102,28.68,153.19,153.11,0.8464594]
[1723120033304,28.68,153.21,153.18,6.5282]
[1723120033634,15.1493,153.22,153.19,6.5277]
[1723120034321,52.2152,153.35,153.22,6.5265]
[1723120034322,28.68,153.25,153.22,6.5265]
[1723120035531,28.68,153.25,153.15,21.8278]
[1723120035739,23.1826,153.3,153.17,48.68]
[1723120035908,35.2036,153.29,153.24,6.5254]
[1723120036106,28.68,153.31,153.28,6.524]
[1723120036306,28.68,153.31,153.27,6.5243]
[1723120036821,28.68,153.31,153.2,20.0]
[1723120037018,1.63102415,153.32,153.24,6.5256]
[1723120037019,35.2035,153.29,153.24,6.5256]
[1723120037332,35.2044,153.27,153.22,6.5264]
[1723120037520,28.68,153.25,153.22,6.5264]
[1723120038014,28.68,153.25,153.21,6.5268]
[1723120038200,28.68,153.25,153.22,6.5264]
[1723120038605,35.2052,153.25,153.2,6.5274]
[1723120038908,28.68,153.23,153.19,6.5277]
[1723120039413,28.68,153.21,153.16,6.529]
[1723120039914,28.68,153.21,153.11,45.13530789]
[1723120040125,28.68,153.21,153.19,6.5278]
[1723120040308,28.68,153.21,153.18,6.5281]
[1723120041631,28.68,153.19,153.11,23.8297594]
[1723120041936,28.68,153.19,153.17,6.5283]
[1723120042111,28.68,153.21,153.17,6.5283]
[1723120042432,28.68,153.21,153.18,6.5281]
[1723120042636,28.68,153.21,153.18,6.5279]
[1723120043215,28.68,153.21,153.17,6.5286]
[1723120043617,28.68,153.21,153.16,6.5289]
[1723120043812,35.207,153.21,153.16,6.5289]
[1723120044021,28.68,153.19,153.15,6.5294]
[1723120044517,28.68,153.17,153.11,0.8464594]
[1723120044717,28.68,153.15,153.12,6.5306]
[1723120044918,28.68,153.15,153.14,6.5299]
[1723120045118,28.68,153.17,153.11,0.8464594]
[1723120045334,28.68,153.15,153.14,6.5299]
[1723120045546,28.68,153.17,153.11,0.8464594]
[1723120045708,28.68,153.19,153.11,0.8464594]
[1723120045910,28.68,153.19,153.16,6.5289]
[1723120046415,28.68,153.19,153.15,6.5294]
[1723120046744,28.68,153.19,153.16,6.529]
[1723120046910,28.68,153.17,153.11,0.8464594]
[1723120047122,28.68,153.15,153.12,6.5307]
[1723120047312,28.68,153.15,153.12,6.5306]
[1723120047543,30.3127443,153.15,153.11,0.8464594]
[1723120047725,28.68,153.15,153.11,0.8464594]
[1723120047948,28.68,153.15,153.11,7.3775594]
[1723120048328,28.68,153.13,153.11,0.8464594]
[1723120048531,28.68,153.15,153.12,6.5304]
[1723120049041,28.68,153.15,153.11,0.8464594]
[1723120049612,28.68,153.13,153.11,0.8464594]
[1723120050552,50.5317,153.12,153.07,10.23753875]
[1723120050853,50.5317,153.12,152.95,7.0312594]
[1723120050854,16.4588,153.03,152.95,7.0312594]
[1723120051021,28.68,152.98,152.95,0.8464594]
[1723120051218,28.68,152.96,152.95,0.8464594]
[1723120051842,82.34,152.96,152.95,0.8464594]
[1723120052140,82.34,152.96,152.94,5.22277867]
[1723120052141,6.538,152.95,152.94,5.22277867]
[1723120052348,51.878,152.95,152.94,5.22277867]
[1723120052846,71.878,152.95,152.94,5.22277867]
[1723120053052,101.878,152.95,152.94,5.22277867]
[1723120053742,36.538,152.95,152.94,5.22277867]
[1723120053962,73.708,152.95,152.94,5.22277867]
[1723120054113,138.878,152.95,152.94,5.22277867]
[1723120054535,6.5395,152.92,152.86,6.5418]
[1723120054741,58.80554055,152.91,152.8,0.8464594]
[1723120054944,6.5407,152.89,152.83,6.5431]
[1723120055121,6.7102,152.9,152.84,6.5427]
[1723120055323,51.7106,152.89,152.83,6.5431]
[1723120055630,30.0,152.88,152.84,6.5426]
[1723120056019,6.7102,152.9,152.84,6.5426]
[1723120056238,45.0,152.89,152.82,16.3591]
[1723120056446,0.17,152.89,152.82,16.3591]
[1723120056626,57.0,152.91,152.84,16.356]
[1723120056819,45.17,152.9,152.84,16.356]
[1723120057243,45.17,152.9,152.85,6.5423]
[1723120057548,57.0,152.91,152.87,6.5411]
[1723120057847,26.5398,152.91,152.86,22.8957]
[1723120058031,20.0,152.91,152.86,22.8957]
[1723120058234,20.0,152.91,152.86,16.3539]
[1723120058423,20.0,152.91,152.86,22.8957]
[1723120058625,6.5407,152.89,152.83,6.5428]
[1723120059344,0.34,152.9,152.85,6.5421]
[1723120059530,0.17,152.9,152.85,6.5421]
[1723120060346,6.0301,152.92,152.89,6.5404]
[1723120060547,23.31114172,152.94,152.9,6.5401]
[1723120060731,30.0,152.91,152.9,6.5402]
[1723120060936,37.0,152.99,152.9,16.3495]
[1723120061136,6.5382,152.95,152.9,16.3495]
[1723120061335,6.5377,152.96,152.9,16.3495]
[1723120061939,6.5377,152.96,152.9,22.8896]
[1723120062147,6.5382,152.95,152.9,22.8896]
[1723120062456,1.63499802,152.98,152.9,16.3495]
[1723120062752,6.538,152.96,152.9,16.3495]
[1723120063053,6.538,152.96,152.9,22.8896]
[1723120063443,6.538,152.96,152.91,6.5396]
[1723120063746,6.538,152.96,152.9,16.3495]
[1723120063747,0.17,152.95,152.9,22.8896]
[1723120064353,0.17,152.95,152.91,6.5396]
[1723120064528,37.0,152.96,152.9,16.3495]
[1723120064727,1.63484439,152.98,152.86,16.0488]
[1723120064955,37.0,152.99,152.91,6.5394]
[1723120065477,6.5373,152.97,152.92,6.5392]
[1723120065654,6.5371,152.98,152.93,6.5388]
[1723120065950,37.0,152.99,152.93,16.3468]
[1723120066248,20.0,152.98,152.91,6.5394]
[1723120066453,20.0,152.98,152.83,20.0]
[1723120066454,37.0,152.99,152.87,21.30796689]
[1723120066752,6.4721,153.01,152.97,6.5372]
[1723120066959,37.0,153.02,152.89,1.30747708]
[1723120067147,37.0,153.02,152.88,20.0]
[1723120067448,6.5365,152.99,152.94,6.5382]
[1723120067656,6.536,153.0,152.94,6.5382]
[1723120067861,38.63460856,153.02,152.94,6.5382]
[1723120067862,6.5364,152.99,152.94,6.5382]
[1723120068061,1.63460826,153.01,152.92,16.3478]
[1723120068227,37.0,152.99,152.89,16.3512]
[1723120068431,37.0,152.96,152.89,16.3512]
[1723120068631,1.63512978,152.95,152.89,16.3512]
[1723120069038,20.0,152.95,152.91,16.3489]
[1723120069445,21.63473855,152.95,152.91,16.3489]
[1723120069652,20.0,152.95,152.91,22.8886]
[1723120069846,37.0,152.96,152.91,22.8886]
[1723120069847,43.5377,152.96,152.91,16.3489]
[1723120070164,37.0,152.96,152.91,16.3489]
[1723120070327,43.538,152.96,152.91,16.3489]
[1723120070530,43.5378,152.96,152.91,22.8885]
[1723120070730,37.0,152.96,152.91,22.8883]
[1723120070933,37.0,152.96,152.91,16.3489]
[1723120071155,6.6287,153.01,152.9,15.0623]
[1723120071332,6.5343,153.04,152.99,6.536]
[1723120071543,58.5279,153.05,152.93,20.0]
[1723120071739,49.9204,153.05,153.0,6.5356]
[1723120071957,37.0,153.08,152.96,6.622]
[1723120072171,6.5328,153.08,152.97,0.17]
[1723120072462,6.5342,153.04,152.99,6.536]
[1723120072640,6.5337,153.06,153.0,6.5358]
[1723120072846,16.3328,153.07,152.94,0.17]
[1723120073155,37.0,153.05,152.93,45.17]
[1723120073361,6.5351,153.02,152.93,45.17]
[1723120073537,37.0,153.05,152.92,6.502]
[1723120073861,6.5343,153.04,152.99,6.5362]
[1723120074233,37.0,153.05,152.92,6.502]
[1723120074436,20.34,153.04,152.92,6.502]
[1723120074655,37.0,153.02,152.96,6.5373]
[1723120074849,37.0,153.02,152.97,6.5371]
[1723120074850,43.5354,153.02,152.97,6.5371]
[1723120075067,43.5354,153.02,152.95,6.5379]
[1723120075068,6.536,153.0,152.95,6.5379]
[1723120075363,37.0,153.02,152.88,6.4123]
[1723120075572,66.80448771,153.01,152.88,6.4123]
[1723120075855,37.0,152.99,152.88,6.4123]
[1723120076443,6.5372,152.97,152.92,6.5392]
[1723120076655,6.5372,152.97,152.91,6.5396]
[1723120076863,6.538,152.96,152.91,6.5396]
[1723120077238,6.538,152.96,152.91,6.5397]
[1723120077540,6.5372,152.97,152.91,6.5396]
[1723120077735,6.5378,152.96,152.91,6.5396]
[1723120078152,1.63468766,152.98,152.88,20.0]
[1723120078458,6.5356,153.01,152.9,20.0]
[1723120078959,6.5356,153.01,152.96,6.5376]
[1723120079359,6.5363,152.99,152.94,22.8841]
[1723120080244,8.17008151,153.01,152.96,6.5374]
[1723120080434,1.63428151,153.01,152.94,16.3458]
[1723120080635,6.536,153.0,152.95,6.5377]
[1723120080839,6.5362,153.0,152.95,6.538]
[1723120081150,20.0,153.01,152.91,16.3487]
[1723120081338,20.0,153.01,152.93,6.5388]
[1723120081339,6.5371,152.98,152.93,6.5388]
[1723120081765,6.5372,152.97,152.92,6.5392]
[1723120081959,45.17,153.0,152.91,16.3487]
[1723120082139,20.0,152.99,152.91,16.3487]
[1723120082651,20.0,152.99,152.93,16.347]
[1723120082855,37.0,153.02,152.95,16.3445]
[1723120083166,43.5352,153.02,152.97,6.5372]
[1723120083343,43.5352,153.02,152.95,16.3445]
[1723120083344,6.5356,153.01,152.96,6.5375]
[1723120083743,37.0,153.02,152.95,22.8824]
[1723120084072,37.0,153.02,152.95,16.3445]
[1723120084253,37.0,153.02,152.92,16.348]
[1723120084565,6.5374,152.97,152.92,22.887]
[1723120084768,6.5369,152.98,152.93,6.5388]
[1723120084943,16.3391,153.01,152.92,16.348]
[1723120084944,6.5372,152.97,152.92,16.348]
[1723120085453,6.5369,152.98,152.93,6.5389]
[1723120085856,6.5364,152.99,152.94,6.5383]
[1723120086061,37.0,153.02,152.88,1.30765925]
[1723120086062,37.0,153.02,152.95,6.5379]
[1723120086261,6.5364,152.99,152.94,6.5383]
[1723120086466,6.5364,152.99,152.94,22.8842]
[1723120086859,6.536,153.0,152.95,6.5379]
[1723120087062,20.0,153.01,152.96,16.3435]
[1723120087372,6.5355,153.01,152.96,22.8808]
[1723120087743,37.0,153.02,152.98,6.5364]
[1723120087949,37.0,153.05,152.98,16.3409]
[1723120088149,49.8267,153.08,153.03,6.5345]
[1723120088349,6.533,153.07,153.02,6.535]
[1723120089148,37.0,153.08,152.94,20.0]
[1723120089354,37.0,153.08,152.95,20.17]
[1723120089563,6.534,153.05,153.0,6.5359]
[1723120089963,37.0,153.08,152.96,1.30692704]
[1723120090267,37.0,153.08,152.96,46.47692704]
[1723120090472,6.5339,153.05,153.0,6.5355]
[1723120090659,6.5337,153.06,152.95,40.17]
[1723120090859,38.63365912,153.08,152.95,40.17]
[1723120091070,1.63365912,153.07,152.95,40.17]
[1723120091267,6.5338,153.05,152.95,40.17]
[1723120091449,6.5338,153.05,153.0,6.5355]
[1723120091786,37.0,153.08,153.0,6.5355]
[1723120091947,6.5341,153.05,152.99,6.536]
[1723120092143,6.5341,153.05,153.0,6.5359]
[1723120093968,6.5338,153.05,153.0,6.5357]
[1723120094172,37.0,153.08,152.97,20.0]
[1723120094352,43.5325,153.08,153.03,6.5343]
[1723120094676,6.5325,153.08,153.03,6.5343]
[1723120095175,43.79873918,153.12,153.04,1.30678313]
[1723120095496,6.5303,153.14,153.09,6.5319]
[1723120095778,37.0,153.19,153.06,20.0]
[1723120095978,37.0,153.22,153.08,20.0]
[1723120096158,1.632144,153.21,153.07,65.17]
[1723120096360,6.5286,153.18,153.12,6.5308]
[1723120096665,37.0,153.19,153.03,0.17]
[1723120096666,6.5302,153.14,153.03,0.17]
[1723120096888,6.5302,153.14,153.03,66.64626319]
[1723120097064,37.0,153.13,153.06,6.5333]
[1723120097468,6.5309,153.12,153.06,6.5333]
[1723120097686,6.5309,153.12,153.07,6.5329]
[1723120097982,37.0,153.13,153.02,20.0]
[1723120098183,37.0,153.16,153.04,20.0]
[1723120098378,43.5278,153.19,153.14,6.5299]
[1723120098570,43.5278,153.19,153.13,6.5302]
[1723120099384,6.5283,153.18,153.13,6.5302]
[1723120099577,1.63247668,153.17,153.01,20.0]
[1723120099779,37.0,153.15,153.08,6.5321]
[1723120100088,43.5315,153.11,153.05,6.5334]
[1723120100511,8.16493699,153.1,153.04,6.5341]
[1723120100683,37.0,153.11,152.99,20.0]
[1723120100987,37.0,153.14,153.02,20.0]
[1723120101179,37.0,153.14,153.03,21.30624588]
[1723120101595,37.0,153.14,153.03,20.0]
[1723120101774,37.0,153.14,153.1,6.5315]
[1723120102176,43.53,153.14,153.09,6.532]
[1723120102582,37.0,153.14,153.03,20.0]
[1723120102769,37.0,153.14,153.09,6.5316]
[1723120103088,1.63295301,153.13,153.01,20.0]
[1723120103292,37.0,153.11,152.98,20.0]
[1723120103498,6.5316,153.1,153.04,6.5341]
[1723120103699,37.0,153.11,152.96,20.0]
[1723120103883,37.0,153.11,152.97,1.3067356]
[1723120104072,37.0,153.11,152.95,20.0]
[1723120104073,37.0,153.08,152.95,20.0]
[1723120104391,37.0,153.11,152.91,20.0]
[1723120104392,43.5341,153.05,152.91,20.0]
[1723120104899,37.0,153.05,153.0,6.5356]
[1723120105288,37.0,153.05,153.01,6.5354]
[1723120105507,37.0,153.05,152.94,1.30706658]
[1723120105796,37.0,153.08,152.96,20.0]
[1723120105990,61.327,153.13,152.97,21.47678688]
[1723120106186,0.17,153.12,152.98,20.0]
[1723120106388,0.17,153.12,152.99,21.47663977]
[1723120106592,0.17,153.12,153.04,6.5338]
[1723120106795,18.13119335,153.12,153.02,6.5349]
[1723120107095,6.5325,153.08,153.03,6.5345]
[1723120107294,6.5321,153.09,153.04,6.5342]
[1723120107495,6.5321,153.09,153.04,6.5341]
[1723120107799,0.17,153.1,152.95,20.0]
[1723120108014,65.34,153.1,152.96,20.17]
[1723120108292,71.5318,153.1,153.04,6.5342]
[1723120108500,26.5318,153.1,153.05,6.5338]
[1723120108672,43.5313,153.11,153.06,6.5333]
[1723120109472,6.5321,153.09,152.97,41.47691966]
[1723120109695,6.5321,153.09,153.04,6.5339]
[1723120110269,6.5318,153.1,153.05,6.5338]
[1723120111699,37.0,153.11,153.07,6.5329]
[1723120111912,1.63334241,153.14,153.0,20.0]
[1723120111913,37.0,153.14,153.0,20.0]
[1723120112203,6.531,153.12,153.07,6.5326]
[1723120112409,6.5305,153.13,153.08,6.5325]
[1723120112592,37.0,153.14,153.1,6.5315]
[1723120112788,38.6329252,153.14,153.01,60.34]
[1723120113004,37.0,153.14,153.01,40.34]
[1723120113206,37.0,153.14,153.01,20.34]
[1723120113416,6.5305,153.13,153.08,6.5322]
[1723120113589,43.53,153.14,153.09,6.532]
[1723120113784,43.53,153.14,153.01,20.34]
[1723120114117,37.0,153.14,153.02,20.0]
[1723120114281,37.0,153.14,153.09,6.532]
[1723120114282,43.53,153.14,153.09,6.532]
[1723120114625,45.16294317,153.14,153.09,6.532]
[1723120114912,37.0,153.14,153.1,6.5316]
[1723120115206,45.16277585,153.14,153.1,6.5316]
[1723120115586,37.0,153.14,153.11,6.5312]
[1723120116805,37.0,153.17,153.13,6.53]
[1723120117008,37.0,153.17,153.06,1.3059847]
[1723120117184,37.0,153.17,153.13,6.5301]
[1723120117723,6.5294,153.16,153.11,6.5311]
[1723120117905,6.5295,153.15,153.1,6.5315]
[1723120118215,43.53,153.14,153.09,6.5318]
[1723120119423,37.0,153.14,152.99,20.0]
[1723120119591,6.5317,153.1,153.0,0.17]
[1723120119785,6.5317,153.1,152.96,40.0]
[1723120120010,37.0,153.11,152.99,20.0]
[1723120120312,37.0,153.11,153.0,1.30666061]
[1723120120786,43.5315,153.11,153.06,6.5332]
[1723120120986,37.0,153.11,152.97,20.0]
[1723120121191,37.0,153.11,152.96,20.0]
[1723120121192,37.0,153.08,152.96,20.0]
[1723120121486,6.5334,153.06,153.02,6.535]
[1723120121802,1.63369168,153.07,153.01,6.5354]
[1723120122013,1.63369168,153.07,153.02,6.535]
[1723120122186,37.0,153.08,152.96,41.30695226]
[1723120122382,37.0,153.11,152.98,20.0]
[1723120122694,20.0,153.1,152.98,21.30666396]
[1723120123210,6.5321,153.09,153.04,6.5341]
[1723120123418,6.5325,153.08,153.04,6.5341]
[1723120123608,6.5321,153.09,153.04,6.5341]
[1723120123914,6.533,153.07,153.02,6.535]
[1723120124094,1.63366075,153.06,152.97,20.0]
[1723120124721,6.533,153.07,153.02,6.5347]
[1723120125208,1.63378218,153.06,153.02,6.5349]
[1723120125414,6.5325,153.08,153.03,6.5345]
[1723120125717,6.7023,153.09,153.04,6.5341]
[1723120125889,20.0,153.08,152.96,21.30690958]
[1723120126088,8.1668726,153.07,153.02,6.535]
[1723120126313,6.5335,153.06,153.01,6.5354]
[1723120126616,1.63380008,153.05,153.01,6.5354]
[1723120126807,1.63380041,153.04,153.01,6.5354]
[1723120127105,37.0,153.05,152.99,6.5359]
[1723120127314,1.63395053,153.04,153.0,6.5357]
[1723120127713,43.5338,153.05,153.0,6.5357]
[1723120128113,37.0,153.05,153.01,6.5354]
[1723120128800,37.0,153.05,153.02,6.535]
[1723120129114,37.0,153.05,153.01,6.5353]
[1723120129517,37.0,153.05,152.96,20.0]
[1723120129806,37.0,153.05,153.02,6.535]
[1723120130206,37.0,153.05,153.03,6.5345]
[1723120130531,37.0,153.05,153.02,6.5349]
[1723120130816,37.0,153.05,153.02,6.5346]
[1723120130999,37.0,153.08,152.96,21.30703226]
[1723120131190,37.0,153.08,152.97,85.34]
[1723120131516,37.0,153.08,152.98,1.30676303]
[1723120131689,37.0,153.08,152.97,20.0]
[1723120131890,6.5329,153.07,153.02,6.5349]
[1723120132104,6.5336,153.06,153.01,6.5354]
[1723120132693,43.534,153.05,153.0,6.5358]
[1723120132903,1.63397377,153.04,153.0,6.5358]
[1723120133592,37.0,153.02,152.9,20.0]
[1723120133793,37.0,153.02,152.88,20.0]
[1723120133996,37.0,153.02,152.99,6.5363]
[1723120134626,37.0,153.02,152.98,6.5366]
[1723120135016,37.0,153.02,152.99,6.5363]
[1723120135200,37.0,153.02,152.98,6.5366]
[1723120135529,43.5353,153.02,152.97,6.5368]
[1723120135731,37.0,153.02,152.99,6.5362]
[1723120136027,37.0,153.02,152.98,6.5366]
[1723120136928,37.0,153.02,152.9,20.0]
[1723120137214,37.0,153.02,152.98,6.5365]
[1723120138202,43.5352,153.02,152.97,6.5371]
[1723120138994,37.0,153.02,152.97,6.5371]
[1723120139227,43.5352,153.02,152.97,6.5371]
[1723120139724,43.5352,153.02,152.97,22.8794]
[1723120140027,6.5356,153.01,152.97,16.3423]
[1723120140601,6.5356,153.01,152.97,22.8795]
[1723120141114,6.5356,153.01,152.97,16.3423]
[1723120141315,6.5356,153.01,152.96,6.5375]
[1723120141518,43.5352,153.02,152.97,6.5371]
[1723120142227,37.0,153.02,152.99,6.5362]
[1723120142443,6.5332,153.07,152.93,21.30721999]
[1723120142599,37.0,153.07,153.02,6.5349]
[1723120142805,6.5335,153.06,153.01,6.5352]
[1723120143215,6.5338,153.05,153.01,6.5352]
[1723120143616,6.5342,153.04,152.99,6.536]
[1723120144130,6.5347,153.03,152.98,6.5366]
[1723120144514,6.5351,153.02,152.98,6.5367]
[1723120144721,6.5346,153.03,152.91,20.0]
[1723120145107,37.0,153.04,153.02,6.5347]
[1723120145306,43.5332,153.07,153.02,6.5347]
[1723120146223,6.5338,153.05,152.93,20.0]
[1723120146414,6.5338,153.05,153.0,6.5356]
[1723120146613,6.5335,153.06,153.01,6.5353]
[1723120146809,37.0,153.07,153.04,6.5339]
[1723120147032,37.0,153.07,152.94,20.0]
[1723120147338,43.533,153.07,153.02,6.5349]
[1723120147541,43.80126585,153.1,152.96,40.0]
[1723120147705,37.0,153.1,152.97,0.34]
[1723120148131,6.5329,153.07,153.02,6.5349]
[1723120148539,6.5341,153.05,153.0,6.5356]
[1723120149119,37.0,153.03,152.97,6.5371]
[1723120149313,8.1694155,153.02,152.97,6.5371]
[1723120149523,1.6342155,153.02,152.97,6.5371]
[1723120149832,8.1695155,153.02,152.97,6.5371]
[1723120150144,6.5353,153.02,152.97,6.5371]
[1723120150332,6.5353,153.02,152.98,6.5367]
[1723120150550,43.5348,153.03,152.98,6.5367]
[1723120151116,6.5351,153.02,152.98,6.5367]
[1723120151313,6.5351,153.02,152.97,6.5371]
[1723120151848,37.0,153.0,152.88,26.80385847]
[1723120152048,37.0,153.0,152.94,6.5382]
[1723120152049,8.17112044,152.99,152.94,6.5382]
[1723120152235,1.63452127,152.98,152.94,6.5382]
[1723120152631,6.5366,152.99,152.95,6.538]
[1723120152832,38.63452602,153.0,152.95,6.538]
[1723120153018,43.5359,153.0,152.95,6.538]
[1723120153229,6.5368,152.98,152.93,16.3467]
[1723120153418,38.6345932,152.97,152.93,16.3467]
[1723120153619,37.0,152.97,152.93,22.8852]
[1723120153841,28.78,152.94,152.93,22.8852]
[1723120154035,28.78,152.94,152.93,16.3467]
[1723120154444,28.78,152.94,152.87,20.0]
[1723120154620,28.78,152.96,152.89,6.5406]
[1723120154621,28.78,152.9,152.89,6.5406]
[1723120156440,28.78,152.9,152.87,16.353]
[1723120156824,28.78,152.9,152.87,22.8943]
[1723120157026,28.78,152.88,152.87,22.8943]
[1723120157356,28.78,152.88,152.87,16.353]
[1723120157522,28.78,152.88,152.8,0.8464594]
[1723120157724,17.98097107,152.95,152.84,6.5426]
[1723120157725,37.04,152.9,152.84,6.5426]
[1723120157925,37.04,152.9,152.85,6.542]
[1723120158138,37.04,152.9,152.86,6.5417]
[1723120158344,37.04,152.9,152.84,16.3563]
[1723120158544,37.04,152.9,152.87,6.5414]
[1723120158730,37.04,152.9,152.86,6.5418]
[1723120159247,43.5803,152.9,152.85,6.5423]
[1723120159463,37.04,152.9,152.81,16.3598]
[1723120159746,37.04,152.9,152.85,6.5419]
[1723120159932,6.5394,152.92,152.87,6.5412]
[1723120160249,26.5398,152.91,152.86,22.8965]
[1723120160437,26.5398,152.91,152.8,40.8464594]
[1723120160438,6.5405,152.9,152.85,6.5422]
[1723120161446,6.5405,152.9,152.84,6.5426]
[1723120162034,6.5405,152.9,152.85,6.5422]
[1723120162239,6.5405,152.9,152.85,6.5423]
[1723120162843,37.04,152.9,152.83,16.3575]
[1723120163050,6.5416,152.87,152.83,16.3575]
[1723120163238,1.6356811,152.86,152.83,16.3575]
[1723120163750,6.5411,152.88,152.83,22.9006]
[1723120166153,6.5411,152.88,152.8,0.8464594]
[1723120166154,37.04,152.86,152.8,0.8464594]
[1723120166356,20.0,152.87,152.8,0.8464594]
[1723120166652,6.5402,152.9,152.8,0.8464594]
[1723120166948,37.04,152.92,152.8,0.8464594]
[1723120166949,26.5407,152.89,152.84,6.5426]
[1723120167466,6.5415,152.87,152.82,6.5435]
[1723120168071,6.5419,152.86,152.81,22.9035]
[1723120168859,6.5419,152.86,152.82,6.5436]
[1723120169069,57.04,152.89,152.83,6.5432]
[1723120169070,6.5412,152.88,152.83,6.5432]
[1723120169230,6.5412,152.88,152.81,16.3596]
[1723120169231,26.5415,152.87,152.82,6.5435]
[1723120169543,37.04,152.86,152.81,16.3596]
[1723120169753,6.5424,152.85,152.81,16.3596]
[1723120169929,43.5819,152.86,152.81,22.9036]
[1723120170633,43.5819,152.86,152.82,6.5436]
[1723120170936,37.04,152.92,152.83,1.30864377]
[1723120171145,37.04,152.96,152.89,16.3511]
[1723120171450,16.3414,152.99,152.87,20.0]
[1723120171451,43.5765,152.99,152.87,20.0]
[1723120171752,6.5368,152.98,152.93,16.3467]
[1723120171975,37.04,152.99,152.9,16.35]
[1723120172651,6.5379,152.96,152.91,6.5394]
[1723120172846,37.04,152.99,152.9,16.35]
[1723120172847,38.67469201,152.99,152.9,16.35]
[1723120173054,6.5389,152.93,152.88,6.5409]
[1723120173268,37.04,152.96,152.84,20.0]
[1723120173485,6.5383,152.95,152.9,6.5402]
[1723120173775,37.04,152.96,152.91,6.5397]
[1723120173776,43.5777,152.96,152.91,6.5397]
[1723120173941,37.04,152.96,152.85,1.47788064]
[1723120174148,37.04,152.99,152.87,20.0]